Cogmind - Beta 12 @@@ ROGUE MODE // 2023.06.26 @ 20:38:53 Player: Michael Result: Self-destructed Performance ------------- Evolutions (2) 1000 Regions Visited (5) 1000 Robots Destroyed (45) 225 Value Destroyed (1351) 1351 Prototype IDs (4) 80 Alien Tech Used (0) 0 Bonus (14) 14 TOTAL SCORE: 3670 Bonus ------- Follower Combat Kills 14 Cogmind --------- Core Integrity 18/550 Matter 126/300 Energy 100/100 System Corruption 0% Temperature Cool (0) Movement Core (200) Ox3 Location -8/Materials Parts ------- > --- POWER (1) -------- (None) > --- PROPULSION (2) --- (None) > --- UTILITY (6) ------ Medium Storage Unit Machine Analyzer Advanced Visual Processing Unit Hacking Suite > --- WEAPON (2) ------- Scythe > --- INVENTORY (10) --- Light Nuclear Core Armored Treads Wheel Large Storage Unit High-capacity Matter Pod (200) Hardened Medium Armor Plating Assault Rifle Peak State ------------ > --- POWER ------------ Light Nuclear Core > --- PROPULSION ------- Improved Carbon-fiber Leg Improved Carbon-fiber Leg > --- UTILITY ---------- Improved Heat Sink Medium Storage Unit Structural Scanner Machine Analyzer Improved Utility Shielding Hardened Medium Armor Plating > --- WEAPON ----------- Assault Cannon Scythe > --- INVENTORY -------- Light Nuclear Core Light Treads Armored Treads Wheel Large Storage Unit High-capacity Matter Pod Assault Rifle Assault Rifle Assault Rifle Light Assault Rifle [Rating: 32] Favorites ----------- Power Ion Engine Engine Ion Engine Power Core Light Nuclear Core Propulsion Aluminum Leg Leg Aluminum Leg Utility Medium Storage Unit Device Tractor Beam Storage Medium Storage Unit Processor Machine Analyzer Hackware Hacking Suite Protection Improved Utility Shielding Weapon Assault Rifle Energy Gun Particle Gun Ballistic Gun Assault Rifle Ballistic Cannon Assault Cannon Launcher Rocket Launcher Slashing Weapon Scythe Build | -11 -10 -10 -10 -9 -8 ------- Run | Jun Mat Min Exi Min Mat Slots Evolved 4 | . . . . . 4 Power . | . . . . . . Propulsion . | . . . . . . Utility 4 | . . . . . 4 Weapon . | . . . . . . Parts Attached 57 | 6 13 2 3 4 29 Power 4 | 1 1 . . . 2 Engine 3 | 1 1 . . . 1 Core 1 | . . . . . 1 Reactor . | . . . . . . Propulsion 10 | 2 5 . 1 . 2 Treads . | . . . . . . Leg 10 | 2 5 . 1 . 2 Wheel . | . . . . . . Hover . | . . . . . . Flight . | . . . . . . Utility 12 | 1 4 . . . 7 Device 5 | . 3 . . . 2 Storage 2 | 1 1 . . . . Processor 2 | . . . . . 2 Hackware 1 | . . . . . 1 Protection 2 | . . . . . 2 Artifact . | . . . . . . Weapon 31 | 2 3 2 2 4 18 Energy Gun 1 | . . . . . 1 Energy Cannon . | . . . . . . Ballistic Gun 19 | 2 3 1 2 2 9 Ballistic Cannon 1 | . . . . . 1 Launcher 6 | . . 1 . 2 3 Special Weapon . | . . . . . . Impact Weapon . | . . . . . . Slashing Weapon 4 | . . . . . 4 Piercing Weapon . | . . . . . . Special Melee Weapon . | . . . . . . Unidentified Prototypes . | . . . . . . Parts Lost 12 | . 1 . . . 11 Power 2 | . . . . . 2 Propulsion 3 | . 1 . . . 2 Utility 2 | . . . . . 2 Weapon 5 | . . . . . 5 Highest Loss Streak 9 | . 1 . . . 9 To Critical Strikes . | . . . . . . Average Slot Usage (%) 94 | . 97 100 77 100 89 Engine 11 | . 14 14 14 14 4 Core 1 | . . . . . 4 Leg 24 | . 27 28 28 28 16 Device 13 | . 11 14 14 14 15 Storage 12 | . 14 14 14 14 9 Processor 2 | . . . . . 7 Protection 3 | . . . . . 12 Ballistic Gun 21 | . 27 27 5 28 12 Ballistic Cannon 1 | . . . . . 3 Naked Turns . | . . . . . . Heaviest Build 34 | 14 20 22 20 20 34 Greatest Support 36 | 20 20 20 20 20 36 Greatest Overweight (x) 3 | . . 1 . . 3 Average Overweight (x) . | . . . . . . Largest Inventory Capacity 10 | 8 10 10 10 10 10 Average Capacity 9 | 6 8 10 10 10 10 Most Carried 10 | 4 10 10 10 10 10 Average Carried 9 | 2 7 9 9 9 9 Final Capacity 10 | 8 10 10 10 10 10 Final Carried 10 | 4 10 10 8 10 7 Class Distribution -------------------- 100% | Mutant Dominant Class ---------------- Mutant | -10/Materials Mutant | -10/Mines Mutant | -10/Exiles Mutant | -9/Mines Mutant | -8/Materials Resources | -11 -10 -10 -10 -9 -8 ----------- Run | Jun Mat Min Exi Min Mat Matter Collected 1457 | 216 445 80 . 163 553 Remotely 734 | . 154 80 . 163 337 Salvage Created 1460 | . 456 62 . 207 735 Parts 91 | . 32 7 . 18 34 Haulers Intercepted 1 | . . . . . 1 Recyclers Shooed 2 | . 1 . . 1 . Parts Field Recycled . | . . . . . . Retrieved Matter . | . . . . . . Parts Self-Destructed . | . . . . . . Prevented . | . . . . . . Kills | -11 -10 -10 -10 -9 -8 ------- Run | Jun Mat Min Exi Min Mat Combat Hostiles Destroyed 36 | . 9 3 . 9 15 Guns 22 | . 9 2 . 3 8 Cannons 5 | . . . . . 5 AOE 9 | . . 1 . 6 2 Classes Destroyed 12 | . 4 3 . 2 3 Worker 2 | . 1 . . . 1 Builder 1 | . . 1 . . . Tunneler 1 | . . 1 . . . Hauler 1 | . . . . . 1 Recycler 1 | . . . . 1 . Operator 1 | . 1 . . . . Watcher 2 | . 2 . . . . Swarmer 10 | . . 3 . 7 . Grunt 18 | . 9 . . 1 8 Brawler 2 | . . . . 1 1 Sentry 4 | . . . . . 4 Specialist 2 | . . . . . 2 Best Kill Streak 5 | . 5 2 . 4 5 Combat Bots Only 5 | . 2 2 . 4 5 Max Kills in Single Turn 3 | . 1 2 . 3 2 Gunslinging . | . . . . . . Exploded 2 | . . 1 . 2 1 Melee . | . . . . . . Uniques/NPCs Destroyed . | . . . . . . Combat | -11 -10 -10 -10 -9 -8 -------- Run | Jun Mat Min Exi Min Mat Damage Taken 2680 | . 508 57 . 138 1977 Core 644 | . 85 9 . 18 532 Absorbed by Shields . | . . . . . . Redirected to Shielding 106 | . . . . . 106 Regen/Repaired (Parts) 139 | . 77 . . . 62 Core Remaining (%) 77 | 100 . . . 55 . Volleys Fired 130 | . 43 7 . 9 71 Largest 2 | . 2 2 . 2 2 Hottest 67 | . 40 40 . 53 67 Shots Fired 253 | . 86 12 . 18 137 Gun 218 | . 86 10 . 15 107 Cannon 26 | . . . . . 26 Launcher 9 | . . 2 . 3 4 Special . | . . . . . . Kinetic 243 | . 86 10 . 15 132 Thermal 1 | . . . . . 1 Explosive 9 | . . 2 . 3 4 Electromagnetic . | . . . . . . Robot Hit Streak 18 | . 7 6 . 3 18 Robot Miss Streak 4 | . 3 4 . 2 4 Penetration Max . | . . . . . . Secondary Targets 1 | . . . . . 1 Max Gunslinging Chain 1 | . . . . . 1 Shots Hit Robots 180 | . 63 5 . 10 102 Core Hits 84 | . 27 5 . 12 40 Critical Kills . | . . . . . . Critical Parts Destroyed 1 | . . . . . 1 Critical Strikes 3 | . . . . . 3 Destroy 1 | . . . . . 1 Blast 2 | . . . . . 2 Melee Attacks 6 | . . . . . 6 Impact . | . . . . . . Slashing 6 | . . . . . 6 Piercing . | . . . . . . Sneak Attacks . | . . . . . . Combat Hostiles . | . . . . . . Follow-up Attacks . | . . . . . . Damage Inflicted 3317 | . 788 125 . 487 1917 Guns 1954 | . 788 67 . 108 991 Cannons 495 | . . . . . 495 Explosions 799 | . . 58 . 379 362 Melee 69 | . . . . . 69 Ramming . | . . . . . . Kinetic 2436 | . 788 67 . 108 1473 Thermal 13 | . . . . . 13 Explosive 799 | . . 58 . 379 362 Electromagnetic . | . . . . . . Impact . | . . . . . . Slashing 69 | . . . . . 69 Piercing . | . . . . . . Highest Corruption 2 | . 2 2 2 2 . Average Corruption 2 | . 2 2 2 2 . Corruption Purged . | . . . . . . Corruption Blocked . | . . . . . . Effects 23 | . 8 7 4 4 . Message Errors 3 | . . 1 2 . . Matter Fused 10 | . 6 1 1 2 . Heat Flow Errors 1 | . . . 1 . . Energy Discharges 6 | . 1 4 . 1 . Data Loss (minor) 2 | . 1 1 . . . Data Loss (major) 1 | . . . . 1 . Overload Shots . | . . . . . . Overflow Damage 55 | . . . . 34 21 Projectiles . | . . . . . . Explosions 55 | . . . . 34 21 Melee . | . . . . . . Knockbacks 3 | . . . . . 3 Impact . | . . . . . . Kinetic 2 | . . . . . 2 Secondary 1 | . . . . . 1 Self-Inflicted Damage 125 | . . . . 29 96 Shots 4 | . . . . 2 2 Rammed . | . . . . . . Targets Rammed . | . . . . . . Kicked . | . . . . . . Crushed . | . . . . . . Highest Temperature 200 | . 10 . 200 . 99 Average Temperature 38 | . 7 . 106 . 31 Received Heat Transfer 1137 | . 285 . . 6 846 Siege Activations . | . . . . . . Robots Corrupted . | . . . . . . Combat Hostiles . | . . . . . . Parts Fried . | . . . . . . Impact Corruptions . | . . . . . . Robots Melted . | . . . . . . Combat Hostiles . | . . . . . . Parts Melted . | . . . . . . Heat Transferred 37 | . . . . . 37 Parts Sabotaged . | . . . . . . Parts Stolen . | . . . . . . Parts Stripped . | . . . . . . Power Chain Reactions . | . . . . . . Missiles Intercepted . | . . . . . . Alert | -11 -10 -10 -10 -9 -8 ------- Run | Jun Mat Min Exi Min Mat Peak Influence 300 | . 262 79 . 274 300 Initial 106 | . . 6 . . 106 Average 116 | . 117 30 . 224 155 Maximum Alert Level 1 | . 1 . . 1 1 Low Security (%) 83 | 100 81 100 . 42 85 Level 1 16 | . 18 . . 57 14 Level 2 . | . . . . . . Level 3 . | . . . . . . Level 4 . | . . . . . . Level 5 . | . . . . . . High Security . | . . . . . . Max Security . | . . . . . . Squads Dispatched 4 | . 1 . . . 3 Investigation . | . . . . . . Extermination . | . . . . . . Reinforcement 4 | . 1 . . . 3 Assault . | . . . . . . Garrison . | . . . . . . Intercept . | . . . . . . Searches Triggered . | . . . . . . Construction Impeded . | . . . . . . Haulers Reinforced . | . . . . . . Active Scanning Responses . | . . . . . . Cargo Convoy Interrupts . | . . . . . . Stealth | -11 -10 -10 -10 -9 -8 --------- Run | Jun Mat Min Exi Min Mat Distress Signals 2 | . 2 . . . . Communications Jammed . | . . . . . . Distress Signals . | . . . . . . Times Spotted 55 | . 18 6 . 9 22 Peak Tracking Total 6 | . 6 3 . 4 6 Tactical Retreats 3 | . 2 . . . 1 Traps | -11 -10 -10 -10 -9 -8 ------- Run | Jun Mat Min Exi Min Mat Traps Triggered 2 | . 2 . . . . Indirectly . | . . . . . . Trap Hack Attempts . | . . . . . . Triggered . | . . . . . . Disarmed . | . . . . . . Reprogrammed . | . . . . . . Reused . | . . . . . . Traps Extracted . | . . . . . . Installed 1 | . . 1 . . . Triggered . | . . . . . . Machines | -11 -10 -10 -10 -9 -8 ---------- Run | Jun Mat Min Exi Min Mat Machines Disabled 5 | . 1 . . 2 2 Max in Single Turn 1 | . 1 . . 1 1 Machines Repaired . | . . . . . . Machines Sabotaged . | . . . . . . Overloaded Fab Kills . | . . . . . . Hacking | -11 -10 -10 -10 -9 -8 --------- Run | Jun Mat Min Exi Min Mat Machines Accessed 14 | . 8 . 1 . 5 Terminals 9 | . 5 . . . 4 Fabricators . | . . . . . . Repair Stations 2 | . 1 . . . 1 Recycling Units 2 | . 2 . . . . Scanalyzers . | . . . . . . Garrison Access . | . . . . . . Total Hacks 34 | . 21 . 1 . 12 Successful 18 | . 10 . 1 . 7 Failed 16 | . 11 . . . 5 Catastrophic 3 | . 2 . . . 1 Database Lockouts . | . . . . . . Manual 1 | . . . . . 1 Terminals 24 | . 14 . . . 10 Fabricators . | . . . . . . Repair Stations 6 | . 4 . . . 2 Recycling Units 3 | . 3 . . . . Scanalyzers . | . . . . . . Garrison Access . | . . . . . . Terminal Hacks 12 | . 7 . 1 . 4 Record 1 | . . . 1 . . Prototype ID Bank 2 | . 1 . . . 1 Emergency Access Points 1 | . . . . . 1 Locate Traps 2 | . 2 . . . . Patrol Status 1 | . 1 . . . . Hauler Manifests 2 | . 1 . . . 1 Registered Prototypes 1 | . 1 . . . . Zone Layout 2 | . 1 . . . 1 Fabricator Hacks . | . . . . . . Repair Station Hacks 5 | . 3 . . . 2 Scan Component 3 | . 2 . . . 1 Repair 2 | . 1 . . . 1 Recycling Unit Hacks . | . . . . . . Scanalyzer . | . . . . . . Garrison Access Hacks . | . . . . . . Unauthorized Hacks 1 | . . . . . 1 Terminals 1 | . . . . . 1 Botnet 1 | . . . . . 1 Fabricators . | . . . . . . Repair Stations . | . . . . . . Recycling Units . | . . . . . . Scanalyzers . | . . . . . . Garrison Access . | . . . . . . Data Cores Recovered 1 | . 1 . . . . Used . | . . . . . . Hacking Detections 12 | . 7 . . . 5 Full Trace Events . | . . . . . . Feedback Events . | . . . . . . Feedback Blocked . | . . . . . . Robot Schematics Acquired . | . . . . . . Robots Built . | . . . . . . Authchips . | . . . . . . Time . | . . . . . . Total Robot Build Rating . | . . . . . . Part Schematics Acquired . | . . . . . . Parts Built . | . . . . . . Authchips . | . . . . . . Time . | . . . . . . Total Part Build Rating . | . . . . . . Parts Repaired 2 | . 1 . . . 1 Time 52 | . 26 . . . 26 Parts Recycled . | . . . . . . Recycled Matter . | . . . . . . Retrieved Matter . | . . . . . . Retrieved Components . | . . . . . . Parts Scanalyzed . | . . . . . . Part Schematics Acquired . | . . . . . . Parts Damaged . | . . . . . . Bothacking | -11 -10 -10 -10 -9 -8 ------------ Run | Jun Mat Min Exi Min Mat Used RIF Installer . | . . . . . . Robots Hacked . | . . . . . . Non-combat . | . . . . . . Combat . | . . . . . . Robot Hacks Applied . | . . . . . . Relay Couplers Released . | . . . . . . Fabnet Peak Effective % . | . . . . . . Robots Rewired . | . . . . . . Allies Hacked . | . . . . . . Hacks Repelled . | . . . . . . Allies | -11 -10 -10 -10 -9 -8 -------- Run | Jun Mat Min Exi Min Mat Total Allies 1 | . . 1 . . . Largest Group 1 | . . 1 . . . Highest-Rated Group 31 | . . 31 . . . Highest-Rated Ally 31 | . . 31 . . . Total Orders . | . . . . . . Ally Attacks 2 | . . 2 . . . Total Damage 42 | . . 42 . . . Kills 2 | . . 2 . . . Allies Corrupted . | . . . . . . Allies Melted . | . . . . . . Intel | -11 -10 -10 -10 -9 -8 ------- Run | Jun Mat Min Exi Min Mat Robot Analysis Total . | . . . . . . Derelict Logs Recovered 2 | . . 1 . 1 . Drone Launches . | . . . . . . Drone Recoveries . | . . . . . . Exploration | -11 -10 -10 -10 -9 -8 ------------- Run | Jun Mat Min Exi Min Mat Turns Passed 3222 | 61 943 749 187 315 967 Spaces Moved 1961 | 44 605 598 152 232 330 Core 8 | 6 . . . . 2 Treads . | . . . . . . Legs 1953 | 38 605 598 152 232 328 Wheels . | . . . . . . Hover . | . . . . . . Flight . | . . . . . . Fastest Speed 50 | 50 120 120 120 120 120 Average Speed 123 | 110 120 120 120 120 138 Slowest Speed 200 | 120 120 190 120 120 200 Overloaded Moves . | . . . . . . Propulsion Burnouts . | . . . . . . Robots Hopped . | . . . . . . Cave-ins Triggered . | . . . . . . Exploration Rate (%) 57 | 4 95 93 55 64 33 Regions Visited 5 Branch Regions 3 Pre-discovered Areas 1 | . . . 1 . . Known Exits Taken 1 | . . . . 1 . Unknown Exits Taken 4 | 1 1 1 1 . . Scrap Searched 5 | . . 3 . 2 . Spaces Dug 9 | . . . . . 9 Terrain Destroyed 71 | . . 13 . 14 44 Melee . | . . . . . . Projectile 2 | . . . . . 2 AOE 69 | . . 13 . 14 42 Terrain Rammed . | . . . . . . Walls Destroyed . | . . . . . . Machines Disabled . | . . . . . . Actions | -11 -10 -10 -10 -9 -8 --------- Run | Jun Mat Min Exi Min Mat Total 2507 | 53 740 614 158 249 693 Wait 306 | . 64 3 . 1 238 Move 1956 | 43 604 597 151 231 330 Hop . | . . . . . . Pick Up 18 | 4 6 2 . 3 3 Fast Attach 23 | 6 5 . . . 12 Attach 8 | . 1 . 2 . 5 Detach 9 | . 2 . 2 . 5 Swap 26 | . 7 2 1 4 12 Drop 24 | . 8 2 2 1 11 Fire 130 | . 43 7 . 9 71 Melee 6 | . . . . . 6 Ram . | . . . . . . Kick . | . . . . . . Crush . | . . . . . . Escape Stasis . | . . . . . . Rewire . | . . . . . . Trap 1 | . . 1 . . . Miscellaneous . | . . . . . . Route ------- -11/Junkyard -10/Materials (discovered 4 exits: [*Mat x3] / [*Min]) -10/Mines (discovered 3 exits: [*Mat x2] / *Exi) -10/Exiles -9/Mines (discovered 2 exits: *Mat x2) -8/Materials (discovered 1 exit: [*Fac]) History --------- Turn | Location | Event 4 | -11/Junkyard | Discovered new exit (range 13) 62 | -11/Junkyard | Entered Materials 174 | -10/Materials | Discovered new exit (range 8) 338 | -10/Materials | Build established: Mutant 520 | -10/Materials | Discovered new exit (range 14) 683 | -10/Materials | Discovered new exit (range 13) 785 | -10/Materials | Discovered new exit (range 4) 894 | -10/Materials | Repaired Assault Rifle 1005 | -10/Materials | Entered Mines 1017 | -10/Mines | Discovered new exit (range 12) 1064 | -10/Mines | Found a hidden stash of uninstalled traps 1072 | -10/Mines | Learned Materials terminal intel 1084 | -10/Mines | Discovered new exit (range 15) 1283 | -10/Mines | Received a Rocket Launcher from a helpful Derelict 1331 | -10/Mines | Received a Mining Laser from a helpful Derelict 1398 | -10/Mines | Deemed a non-threat by the Exiles lab entrance 1398 | -10/Mines | Discovered new exit (range 5) 1754 | -10/Mines | Entered Exiles 1786 | -10/Exiles | Met 8R-AWN 1807 | -10/Exiles | Met EX-HEX 1862 | -10/Exiles | Met EX-DEC 1883 | -10/Exiles | Learned location of Zion (-6) 1925 | -10/Exiles | Discovered new exit (range 14) 1941 | -10/Exiles | Entered Mines 2021 | -9/Mines | Discovered new exit (range 4) 2098 | -9/Mines | Identified exit to Materials 2235 | -9/Mines | A weapon hastily lodged in a ceiling crevice suddenly fell to the ground 2256 | -9/Mines | Entered Materials 2256 | -8/Materials | Evolved 4 slots: Utility x4 2257 | -8/Materials | Loaded intel: 12 terminal locations 2392 | -8/Materials | Repaired Assault Rifle 2944 | -8/Materials | Discovered new exit (range 5) 3207 | -8/Materials | Core integrity fell below 50% 3218 | -8/Materials | Core integrity fell below 20% 3223 | -8/Materials | Self-destructed Last Messages --------------- 03193_ X-62 Marksman destroyed. 03193_ Lgt. Nuclear Core destroyed. 03193_ Destroyed Lgt. Nuclear Core. 03194_ Structural Scanner destroyed. 03195_ Imp. Utility Shielding destroyed. 03196_ Missile Launcher destroyed. 03197_ Acquired Particle Gun. 03197_ U-05 Engineer lays Concrete. 03199_ U-05 Engineer builds a Wall. 03202_ Dropped Particle Gun. 03203_ U-05 Engineer lays Concrete. 03204_ U-05 Engineer builds a Wall. 03209_ U-05 Engineer lays Concrete. 03209_ Scythe severed. 03210_ U-05 Engineer builds a Wall. 03210_ U-05 Engineer lays Concrete. 03212_ Acquired Scythe. 03214_ Acquired 8 matter. 03214_ U-05 Engineer builds a Wall. 03214_ U-05 Engineer lays Concrete. Map ----- +----------------------------------------------------+ | ?????????????????????????????????????????????????? | | ?????????????????????????????????????????????????? | | ?????????????????????????????????????????????????? | | ?????????????????????????????????????????????????? | | ?????????????????????????????????????????????????? | | ?????????????????????????????????????????????????? | | ?????????????????????????????????????????????????? | | ????????????????????????????? ???????????????????? | | ???????????????????????????? ???????????????????? | | ???????????????????????????? ????????????????????? | | ???????????????????????????? ????????????????????? | | ???????????????????????????? ????????????????????? | | ??????????????????????????? ????????????????????? | | ??????????????????????????? ?????????????T???????? | | ???????????????????????#### ?????????????????????? | | ???????????????????????#### ?????????????????????? | | ??????????????????????? ?????????????????????? | | ???????????????????????? ??????????????????????? | | ??????????????????????? ??????????? | | ????????????????##?????## ########+### ??????????? | | ???????????## ??? ??#### ###! # ??????????? | | ???????????## ????? # #!# # ??????????? | | ??????????? # #### # """ # ??????????? | | ?????? / /%*uuug """"" # ??????????? | | ??????????? # /####l """"" !# ??????????? | | ???????????## ?????? # [@% o""""" # ??????????? | | ???????????## ???????# [[ """ ##??????????? | | ?????????????????????## =!* ##??????????? | | ?????????? ## ### [ # % ##??????????? | | ?????????? ######+###### ##+########??????????? | | ?????????? ## T ## ##!########??????????? | | ?????????? ## ##! ## ##????????????????? | | ?????????? ##! ## ## ##????????????????? | | ?????????? ## ## ## ##????????????????? | | ?????????? ## """ """ ######## ############??????? | | ?????????? ## """ """ ### #### ############??????? | | ????????## ## """ """ ##??#### ### [ ##??????? | | ????????## ##? ######! # ###??????? | | "???????# !#?###+##########= =# "S ###??????? | | "???????? ??## %! !+=""" ##???????? | | ????????# #?## #########[% % # "" ##???????? | | ????????## ##?## ######### #! !##???????? | | ????????## ##?## # ### ###########???????? | | ????????## ##?## # ### ###########???????? | | ########## ##### # ### ##????????????????? | | ########## ##### # """ ### ##????????????????? | | ## # """ =###+##????????????????? | | ## + """ # ????????????????? | | ## # # ? ??????????????????? | | ## ############### """ + ? ??????????????????? | +----------------------------------------------------+ Best States ------------- Heat Dissipation 45 Energy Generation 14 Energy Capacity 250 Matter Stores 300 Matter Capacity 300 Sight Range 20 Terrain Scan Density 10 Armor Coverage 225 Utility Shielding 66 Evasion (%) 55 Offensive Hacking 10 Item Schematics ----------------- None Robot Schematics ------------------ None Fabricated ------------ Nothing Alien Tech Used ----------------- None Achievements -------------- None Challenges ------------ None Game ------ Seed GlidesysPhasingShredder Manual? 0 Play Time 00:27:09 Cumulative 782.0 hours Start 2023.06.26 @ 20:09:01 End 2023.06.26 @ 20:38:53 Sessions 1 Manual Loads 0 Difficulty Rogue Special Mode None Game No. 236 Rogue 200 Adventurer 36 Explorer 0 Win Type - Total 16 Types 16/0/0/0/0/0/0/0/0 Lore% 57 Gallery% 64 Achievement% 50 Wizard Run 0 Options --------- ASCII 0 Keyboard 1 Movement Vi Keybinds 0 Fullscreen 1 Font 18/Terminus Map View 76x50 Tactical HUD 1 Map Filters NONE Filters NONE Steam 0 RUN: 1333ce95-945c-427a-bbc2-6f13611571d0